[Event "*** MasterClass Titled Tuesday Blitz"]
[Site "Chess.com"]
[Date "2017.11.07"]
[Round "3"]
[White "Vrolijk"]
[Black "grzechu96"]
[Result "1-0"]
[WhiteElo "2487"]
[BlackElo "2440"]
[TimeControl "180+2"]
[EndTime "14:42:31 PST"]
[Termination "Vrolijk won by checkmate"]

1. d4 {[%clk 0:03:00.2]} 1... d5 {[%clk 0:02:57]} 2. c4 {[%clk 0:03:01.5]} 2...
c6 {[%clk 0:02:57.5]} 3. Nf3 {[%clk 0:03:02.8]} 3... Nf6 {[%clk 0:02:58.5]} 4.
Nc3 {[%clk 0:03:04.3]} 4... dxc4 {[%clk 0:03:00]} 5. a4 {[%clk 0:03:03.2]} 5...
Bf5 {[%clk 0:02:59]} 6. Ne5 {[%clk 0:03:00.1]} 6... Nbd7 {[%clk 0:02:59.1]} 7.
Nxc4 {[%clk 0:03:01.2]} 7... Nb6 {[%clk 0:02:59.7]} 8. Ne5 {[%clk 0:03:01]} 8...
a5 {[%clk 0:03:00.5]} 9. Bg5 {[%clk 0:03:00.6]} 9... g6 {[%clk 0:02:36.3]} 10.
Qb3 {[%clk 0:02:49.2]} 10... Be6 {[%clk 0:02:22.3]} 11. Qd1 {[%clk 0:02:46.3]}
11... Bg7 {[%clk 0:02:22.2]} 12. e3 {[%clk 0:02:38]} 12... O-O {[%clk
0:02:20.9]} 13. Be2 {[%clk 0:02:37.5]} 13... Nfd5 {[%clk 0:02:20.7]} 14. Nd3
{[%clk 0:02:32.5]} 14... Nd7 {[%clk 0:02:07.5]} 15. O-O {[%clk 0:02:31.7]} 15...
Rc8 {[%clk 0:01:52]} 16. Bh4 {[%clk 0:02:16.5]} 16... c5 {[%clk 0:01:44.1]} 17.
Nxd5 {[%clk 0:02:11.2]} 17... Bxd5 {[%clk 0:01:45.2]} 18. Nf4 {[%clk 0:02:12.5]}
18... Nf6 {[%clk 0:01:35.4]} 19. Bxf6 {[%clk 0:01:36.2]} 19... Bxf6 {[%clk
0:01:31.2]} 20. Nxd5 {[%clk 0:01:38.1]} 20... Qxd5 {[%clk 0:01:28.6]} 21. Bf3
{[%clk 0:01:38.9]} 21... Qd7 {[%clk 0:01:25.7]} 22. Bg4 {[%clk 0:01:30.8]} 22...
e6 {[%clk 0:01:25.5]} 23. d5 {[%clk 0:01:24.3]} 23... Rcd8 {[%clk 0:00:39.3]}
24. dxe6 {[%clk 0:01:14.2]} 24... Qxd1 {[%clk 0:00:40.1]} 25. exf7+ {[%clk
0:01:13.9]} 25... Kxf7 {[%clk 0:00:35.9]} 26. Rfxd1 {[%clk 0:01:11.6]} 26...
Bxb2 {[%clk 0:00:33.1]} 27. Rab1 {[%clk 0:01:10.2]} 27... Rxd1+ {[%clk
0:00:33.8]} 28. Bxd1 {[%clk 0:01:12.1]} 28... Ba3 {[%clk 0:00:29.7]} 29. Rxb7+
{[%clk 0:01:14]} 29... Kf6 {[%clk 0:00:30]} 30. Bb3 {[%clk 0:01:12]} 30... Rd8
{[%clk 0:00:15]} 31. f4 {[%clk 0:01:07.9]} 31... Rd3 {[%clk 0:00:13.4]} 32. Rf7#
{[%clk 0:01:07.5]} 1-0

[Event "*** MasterClass Titled Tuesday Blitz"]
[Site "Chess.com"]
[Date "2017.11.07"]
[Round "3"]
[White "ChristopherYoo"]
[Black "chidori_boruto"]
[Result "0-1"]
[WhiteElo "2261"]
[BlackElo "2533"]
[TimeControl "180+2"]
[EndTime "14:42:41 PST"]
[Termination "chidori_boruto won by resignation"]

1. e4 {[%clk 0:03:01.9]} 1... c6 {[%clk 0:02:59.5]} 2. d4 {[%clk 0:03:01.6]}
2... d5 {[%clk 0:02:58.4]} 3. Nc3 {[%clk 0:03:01.8]} 3... dxe4 {[%clk
0:02:56.3]} 4. Nxe4 {[%clk 0:03:02.1]} 4... Bf5 {[%clk 0:02:51.7]} 5. Ng3 {[%clk
0:03:01.9]} 5... Bg6 {[%clk 0:02:50.7]} 6. h4 {[%clk 0:03:01.2]} 6... h6 {[%clk
0:02:51.2]} 7. h5 {[%clk 0:02:59]} 7... Bh7 {[%clk 0:02:52.2]} 8. Nf3 {[%clk
0:02:59.5]} 8... Nd7 {[%clk 0:02:53.1]} 9. Bd3 {[%clk 0:02:59.9]} 9... Bxd3
{[%clk 0:02:54.1]} 10. Qxd3 {[%clk 0:02:59.6]} 10... e6 {[%clk 0:02:55.3]} 11.
Bd2 {[%clk 0:02:59.1]} 11... Ngf6 {[%clk 0:02:56.4]} 12. O-O-O {[%clk
0:02:57.7]} 12... Be7 {[%clk 0:02:58.3]} 13. Kb1 {[%clk 0:02:55.2]} 13... O-O
{[%clk 0:02:59.2]} 14. Ne4 {[%clk 0:02:54.9]} 14... Nxe4 {[%clk 0:02:59.7]} 15.
Qxe4 {[%clk 0:02:55.9]} 15... Nf6 {[%clk 0:03:00.8]} 16. Qe2 {[%clk 0:02:56.6]}
16... Qd5 {[%clk 0:03:02.3]} 17. Ne5 {[%clk 0:02:46.6]} 17... Qe4 {[%clk
0:03:02.9]} 18. Be3 {[%clk 0:02:41.2]} 18... Nd5 {[%clk 0:02:59.8]} 19. Rhg1
{[%clk 0:01:15.9]} 19... c5 {[%clk 0:02:52.9]} 20. Nd7 {[%clk 0:01:11.4]} 20...
Rfc8 {[%clk 0:02:49]} 21. Nxc5 {[%clk 0:01:03.8]} 21... Bxc5 {[%clk 0:02:50.9]}
22. dxc5 {[%clk 0:01:04.2]} 22... Nxe3 {[%clk 0:02:46.2]} 23. fxe3 {[%clk
0:01:01.1]} 23... Rxc5 {[%clk 0:02:45]} 24. Rd4 {[%clk 0:01:01.2]} 24... Qe5
{[%clk 0:02:33.7]} 25. g4 {[%clk 0:01:01.1]} 25... Rac8 {[%clk 0:02:34.1]} 26.
Rgd1 {[%clk 0:00:59.5]} 26... Rxc2 {[%clk 0:02:29.7]} 27. Rd8+ {[%clk
0:00:58.3]} 27... Kh7 {[%clk 0:02:27.9]} 28. Qd3+ {[%clk 0:00:36.2]} 28... f5
{[%clk 0:02:25.5]} 29. Rd4 {[%clk 0:00:36.7]} 29... Rg2 {[%clk 0:02:17.3]} 30.
gxf5 {[%clk 0:00:32.3]} 30... Qxf5 {[%clk 0:02:14.8]} 31. e4 {[%clk 0:00:25.8]}
31... Qxh5 {[%clk 0:02:13.1]} 32. Rd7 {[%clk 0:00:22.5]} 32... Qe5 {[%clk
0:02:05.3]} 33. Rxb7 {[%clk 0:00:21.4]} 33... Rcc2 {[%clk 0:02:04.3]} 34. Qb3
{[%clk 0:00:05.6]} 34... Qxe4 {[%clk 0:02:03.3]} 35. Ka1 {[%clk 0:00:05.3]}
35... Rxb2 {[%clk 0:01:59.9]} 36. Qxb2 {[%clk 0:00:06.2]} 36... Rxb2 {[%clk
0:02:01.8]} 37. Rxb2 {[%clk 0:00:06.9]} 37... h5 {[%clk 0:02:01.4]} 38. Rbd2
{[%clk 0:00:07.5]} 38... h4 {[%clk 0:02:00.7]} 39. Rd4 {[%clk 0:00:08.2]} 39...
Qe5 {[%clk 0:02:01.9]} 40. Kb1 {[%clk 0:00:08.7]} 40... g5 {[%clk 0:02:02.7]}
41. Rd7+ {[%clk 0:00:08.4]} 41... Kg6 {[%clk 0:02:03.7]} 42. R7d4 {[%clk
0:00:06.8]} 42... h3 {[%clk 0:02:04.1]} 43. R4d3 {[%clk 0:00:05]} 43... h2
{[%clk 0:02:02.4]} 44. R3d2 {[%clk 0:00:03.8]} 44... Qe4+ {[%clk 0:02:01.5]} 0-1

[Event "*** MasterClass Titled Tuesday Blitz"]
[Site "Chess.com"]
[Date "2017.11.07"]
[Round "3"]
[White "SidArun"]
[Black "matej2221"]
[Result "0-1"]
[WhiteElo "2087"]
[BlackElo "2042"]
[TimeControl "180+2"]
[EndTime "14:42:49 PST"]
[Termination "matej2221 won by resignation"]

1. e4 {[%clk 0:03:01.9]} 1... e5 {[%clk 0:03:00.8]} 2. f4 {[%clk 0:03:01.9]}
2... d5 {[%clk 0:03:01.3]} 3. exd5 {[%clk 0:03:01.9]} 3... exf4 {[%clk 0:03:02]}
4. Nf3 {[%clk 0:03:02.2]} 4... Nf6 {[%clk 0:03:03.1]} 5. d4 {[%clk 0:03:04]}
5... Nxd5 {[%clk 0:03:03.6]} 6. Bc4 {[%clk 0:03:03.6]} 6... Nc6 {[%clk 0:02:56]}
7. Bxd5 {[%clk 0:02:55.9]} 7... Qxd5 {[%clk 0:02:56.6]} 8. Bxf4 {[%clk
0:02:56.8]} 8... Qe4+ {[%clk 0:02:42]} 9. Qe2 {[%clk 0:02:56.7]} 9... Bf5 {[%clk
0:02:26.9]} 10. Qxe4+ {[%clk 0:02:54]} 10... Bxe4 {[%clk 0:02:28.8]} 11. c3
{[%clk 0:02:55.6]} 11... Bd6 {[%clk 0:02:23.3]} 12. Bxd6 {[%clk 0:02:53.8]}
12... cxd6 {[%clk 0:02:25.2]} 13. Nbd2 {[%clk 0:02:54.9]} 13... Bd3 {[%clk
0:02:14.7]} 14. Kf2 {[%clk 0:02:55.7]} 14... Kd7 {[%clk 0:02:10.9]} 15. Rhe1
{[%clk 0:02:57]} 15... Rae8 {[%clk 0:02:06.1]} 16. Rxe8 {[%clk 0:02:51.7]} 16...
Rxe8 {[%clk 0:02:08]} 17. Re1 {[%clk 0:02:52.6]} 17... Rxe1 {[%clk 0:02:06.1]}
18. Nxe1 {[%clk 0:02:53.7]} 18... Bf5 {[%clk 0:02:04.6]} 19. Nef3 {[%clk
0:02:54.4]} 19... f6 {[%clk 0:02:02.5]} 20. Ke3 {[%clk 0:02:53.8]} 20... d5
{[%clk 0:02:00.3]} 21. Nb3 {[%clk 0:02:54.3]} 21... b6 {[%clk 0:01:59.6]} 22.
Nc1 {[%clk 0:02:55.3]} 22... Na5 {[%clk 0:01:55.2]} 23. b3 {[%clk 0:02:56.3]}
23... Kd6 {[%clk 0:01:47.2]} 24. Nd3 {[%clk 0:02:54.8]} 24... Nc6 {[%clk
0:01:41]} 25. Nh4 {[%clk 0:02:41.7]} 25... Be4 {[%clk 0:01:39.4]} 26. Nf3 {[%clk
0:02:42.1]} 26... Ne7 {[%clk 0:01:37.4]} 27. g4 {[%clk 0:02:27.2]} 27... h6
{[%clk 0:01:21.2]} 28. c4 {[%clk 0:02:19.5]} 28... h5 {[%clk 0:01:09.5]} 29. c5+
{[%clk 0:02:17.3]} 29... Kc7 {[%clk 0:01:06]} 30. h3 {[%clk 0:02:14.1]} 30...
hxg4 {[%clk 0:01:00.6]} 31. hxg4 {[%clk 0:02:14.8]} 31... Nc6 {[%clk 0:00:48.5]}
32. a3 {[%clk 0:02:13.3]} 32... Bxf3 {[%clk 0:00:48.1]} 33. Kxf3 {[%clk
0:02:14.7]} 33... Nxd4+ {[%clk 0:00:49.2]} 34. Kf4 {[%clk 0:02:14.6]} 34... Ne6+
{[%clk 0:00:34.8]} 35. Kf5 {[%clk 0:02:10.8]} 35... Nxc5 {[%clk 0:00:36.2]} 36.
Nb4 {[%clk 0:02:11.5]} 36... Kd6 {[%clk 0:00:34.1]} 37. Kg6 {[%clk 0:02:11.2]}
37... a5 {[%clk 0:00:30]} 38. Nc2 {[%clk 0:02:09.3]} 38... Nxb3 {[%clk 0:00:24]}
39. Kxg7 {[%clk 0:02:10.3]} 39... Ke5 {[%clk 0:00:25.1]} 40. Ne1 {[%clk
0:02:05]} 40... d4 {[%clk 0:00:13.9]} 41. Nd3+ {[%clk 0:02:04.7]} 41... Ke4
{[%clk 0:00:09.1]} 42. Kxf6 {[%clk 0:02:02.1]} 42... Kxd3 {[%clk 0:00:10.3]} 43.
g5 {[%clk 0:02:03.7]} 43... Kc2 {[%clk 0:00:07.2]} 44. g6 {[%clk 0:02:04.9]}
44... d3 {[%clk 0:00:08.7]} 45. g7 {[%clk 0:02:06.5]} 45... d2 {[%clk
0:00:10.6]} 46. g8=Q {[%clk 0:02:07.5]} 46... d1=Q {[%clk 0:00:12.5]} 47. Qc4+
{[%clk 0:02:08.4]} 47... Kb2 {[%clk 0:00:12.5]} 48. a4 {[%clk 0:02:02.2]} 48...
Qd4+ {[%clk 0:00:12.7]} 0-1

[Event "*** MasterClass Titled Tuesday Blitz"]
[Site "Chess.com"]
[Date "2017.11.07"]
[Round "3"]
[White "Squirlolz"]
[Black "maciek_92"]
[Result "1-0"]
[WhiteElo "2415"]
[BlackElo "2550"]
[TimeControl "180+2"]
[EndTime "14:42:55 PST"]
[Termination "Squirlolz won by resignation"]

1. e4 {[%clk 0:03:01.9]} 1... c5 {[%clk 0:02:47.5]} 2. c3 {[%clk 0:03:02.6]}
2... Nf6 {[%clk 0:02:47.9]} 3. e5 {[%clk 0:03:03.8]} 3... Nd5 {[%clk 0:02:42.6]}
4. Nf3 {[%clk 0:03:05.7]} 4... Nc6 {[%clk 0:02:42.4]} 5. Bc4 {[%clk 0:03:05.3]}
5... e6 {[%clk 0:02:42.6]} 6. d4 {[%clk 0:03:04.2]} 6... cxd4 {[%clk 0:02:42]}
7. cxd4 {[%clk 0:03:05.3]} 7... d6 {[%clk 0:02:42.7]} 8. O-O {[%clk 0:03:06]}
8... Be7 {[%clk 0:02:43.5]} 9. Re1 {[%clk 0:03:06.5]} 9... O-O {[%clk
0:02:42.4]} 10. a3 {[%clk 0:03:07.6]} 10... Bd7 {[%clk 0:02:42.3]} 11. Bd2
{[%clk 0:03:08.1]} 11... Qb6 {[%clk 0:02:35.6]} 12. Nc3 {[%clk 0:03:07.7]} 12...
Nxc3 {[%clk 0:02:27.2]} 13. Bxc3 {[%clk 0:03:09.6]} 13... Rac8 {[%clk
0:02:28.7]} 14. exd6 {[%clk 0:03:07.3]} 14... Bxd6 {[%clk 0:02:29.8]} 15. d5
{[%clk 0:03:05.5]} 15... exd5 {[%clk 0:02:27.3]} 16. Qxd5 {[%clk 0:03:05.2]}
16... Ne7 {[%clk 0:02:24.6]} 17. Rxe7 {[%clk 0:02:40]} 17... Bxe7 {[%clk
0:02:22.4]} 18. Qxd7 {[%clk 0:02:39]} 18... Bc5 {[%clk 0:02:11.5]} 19. Bxf7+
{[%clk 0:02:19.2]} 19... Kh8 {[%clk 0:02:11.3]} 20. Be6 {[%clk 0:01:15]} 20...
Bxf2+ {[%clk 0:01:52.2]} 21. Kh1 {[%clk 0:01:10]} 21... Rxc3 {[%clk 0:01:52.5]}
22. bxc3 {[%clk 0:01:07.5]} 22... Rd8 {[%clk 0:01:49]} 23. Qf7 {[%clk
0:01:00.5]} 23... Qb2 {[%clk 0:01:45.5]} 24. Rf1 {[%clk 0:00:53.5]} 24... Bc5
{[%clk 0:00:43.8]} 25. Ne5 {[%clk 0:00:40.8]} 25... h6 {[%clk 0:00:29.6]} 26.
Ng6+ {[%clk 0:00:20.6]} 26... Kh7 {[%clk 0:00:29.5]} 27. Qf5 {[%clk 0:00:22.1]}
1-0

[Event "*** MasterClass Titled Tuesday Blitz"]
[Site "Chess.com"]
[Date "2017.11.07"]
[Round "3"]
[White "FearNoEvil12"]
[Black "ChadBiryani"]
[Result "0-1"]
[WhiteElo "2014"]
[BlackElo "2187"]
[TimeControl "180+2"]
[EndTime "14:42:58 PST"]
[Termination "ChadBiryani won by resignation"]

1. e4 {[%clk 0:03:01.9]} 1... d5 {[%clk 0:02:59.8]} 2. exd5 {[%clk 0:03:00.3]}
2... Qxd5 {[%clk 0:03:01.7]} 3. Nc3 {[%clk 0:03:01]} 3... Qd6 {[%clk 0:03:02.6]}
4. g3 {[%clk 0:03:02.2]} 4... g6 {[%clk 0:02:57]} 5. Bg2 {[%clk 0:03:02.9]} 5...
Bg7 {[%clk 0:02:58.6]} 6. Nge2 {[%clk 0:03:04.2]} 6... Nf6 {[%clk 0:02:55.2]} 7.
h3 {[%clk 0:03:04.4]} 7... O-O {[%clk 0:02:55.9]} 8. O-O {[%clk 0:03:05.7]} 8...
c6 {[%clk 0:02:57.1]} 9. d4 {[%clk 0:03:07]} 9... Bf5 {[%clk 0:02:54.8]} 10. Bf4
{[%clk 0:03:08.2]} 10... Qd8 {[%clk 0:02:55.4]} 11. Kh2 {[%clk 0:03:08.6]} 11...
Na6 {[%clk 0:02:55.4]} 12. Qd2 {[%clk 0:03:05.8]} 12... Nb4 {[%clk 0:02:54]} 13.
Rac1 {[%clk 0:03:06.1]} 13... Nbd5 {[%clk 0:02:54.9]} 14. a3 {[%clk 0:03:05.9]}
14... Nxf4 {[%clk 0:02:53.6]} 15. Nxf4 {[%clk 0:03:04]} 15... Re8 {[%clk
0:02:48.4]} 16. Rcd1 {[%clk 0:03:03]} 16... Qb6 {[%clk 0:02:41.8]} 17. b4 {[%clk
0:03:00.3]} 17... Rad8 {[%clk 0:02:40.9]} 18. Rfe1 {[%clk 0:02:58.6]} 18... e5
{[%clk 0:02:36.5]} 19. Nfe2 {[%clk 0:02:36.8]} 19... exd4 {[%clk 0:02:35.1]} 20.
Na4 {[%clk 0:02:37.2]} 20... Qb5 {[%clk 0:02:08]} 21. Nc5 {[%clk 0:02:38.1]}
21... b6 {[%clk 0:02:08.2]} 22. Nd3 {[%clk 0:02:29.1]} 22... c5 {[%clk
0:02:04.9]} 23. Nef4 {[%clk 0:02:18.7]} 23... c4 {[%clk 0:01:48.6]} 24. Nc1
{[%clk 0:02:18.1]} 24... c3 {[%clk 0:01:38.5]} 25. Rxe8+ {[%clk 0:02:17.2]}
25... Rxe8 {[%clk 0:01:39.5]} 26. Qxd4 {[%clk 0:02:15.2]} 26... Ng4+ {[%clk
0:01:39.9]} 27. hxg4 {[%clk 0:02:15.4]} 27... Bxd4 {[%clk 0:01:41.4]} 28. gxf5
{[%clk 0:02:16.4]} 28... Bxf2 {[%clk 0:01:40]} 29. fxg6 {[%clk 0:02:06.4]} 29...
hxg6 {[%clk 0:01:39.1]} 30. Ncd3 {[%clk 0:02:04.8]} 30... Be3 {[%clk 0:01:35.8]}
31. Nd5 {[%clk 0:02:04.3]} 31... Kg7 {[%clk 0:01:32.6]} 32. Bf3 {[%clk
0:01:45.2]} 32... Qc4 {[%clk 0:01:02.8]} 33. Kg2 {[%clk 0:01:33.8]} 33... Bg5
{[%clk 0:01:00.5]} 34. a4 {[%clk 0:01:07.3]} 34... Qa2 {[%clk 0:00:57]} 35. Ne1
{[%clk 0:00:34.3]} 35... Bd2 {[%clk 0:00:51.4]} 36. Nd3 {[%clk 0:00:30.1]} 36...
Qxc2 {[%clk 0:00:50.7]} 37. Nf2 {[%clk 0:00:31.6]} 37... Be1 {[%clk 0:00:46.8]}
0-1

[Event "*** MasterClass Titled Tuesday Blitz"]
[Site "Chess.com"]
[Date "2017.11.07"]
[Round "3"]
[White "Grebeniuk-S"]
[Black "Msb2"]
[Result "0-1"]
[WhiteElo "2441"]
[BlackElo "2638"]
[TimeControl "180+2"]
[EndTime "14:43:06 PST"]
[Termination "Msb2 won by resignation"]

1. d4 {[%clk 0:03:01.9]} 1... Nf6 {[%clk 0:02:59.4]} 2. Nf3 {[%clk 0:03:02.8]}
2... d5 {[%clk 0:02:58]} 3. e3 {[%clk 0:03:03.8]} 3... c5 {[%clk 0:02:58.2]} 4.
c3 {[%clk 0:03:04.6]} 4... e6 {[%clk 0:02:56]} 5. Nbd2 {[%clk 0:03:05.3]} 5...
b6 {[%clk 0:02:56.9]} 6. Bd3 {[%clk 0:03:04.4]} 6... Bb7 {[%clk 0:02:57]} 7. O-O
{[%clk 0:03:04.4]} 7... Be7 {[%clk 0:02:57.3]} 8. Re1 {[%clk 0:03:05.4]} 8...
O-O {[%clk 0:02:56.6]} 9. Qc2 {[%clk 0:02:55.4]} 9... Nbd7 {[%clk 0:02:55]} 10.
e4 {[%clk 0:02:44.3]} 10... c4 {[%clk 0:02:30.6]} 11. Bf1 {[%clk 0:02:36.3]}
11... dxe4 {[%clk 0:02:29]} 12. Ng5 {[%clk 0:02:27.8]} 12... b5 {[%clk 0:02:30]}
13. Ndxe4 {[%clk 0:02:21.8]} 13... Nxe4 {[%clk 0:02:31.9]} 14. Nxe4 {[%clk
0:02:22]} 14... Nf6 {[%clk 0:02:33.5]} 15. Nxf6+ {[%clk 0:02:08.8]} 15... Bxf6
{[%clk 0:02:35.4]} 16. Bf4 {[%clk 0:02:09.8]} 16... Rc8 {[%clk 0:02:28.4]} 17.
Re3 {[%clk 0:02:08.3]} 17... b4 {[%clk 0:02:18.8]} 18. Be5 {[%clk 0:01:58.9]}
18... Bxe5 {[%clk 0:02:19.4]} 19. Rxe5 {[%clk 0:01:59.8]} 19... Qb6 {[%clk
0:02:16.2]} 20. Rae1 {[%clk 0:01:52]} 20... Bd5 {[%clk 0:02:16.3]} 21. Rh5
{[%clk 0:01:45.8]} 21... g6 {[%clk 0:02:16.6]} 22. Rh3 {[%clk 0:01:47]} 22...
bxc3 {[%clk 0:02:15]} 23. bxc3 {[%clk 0:01:35.8]} 23... Rb8 {[%clk 0:02:02.9]}
24. Qd2 {[%clk 0:01:36.8]} 24... Qc7 {[%clk 0:01:54.6]} 25. Qh6 {[%clk
0:01:30.1]} 25... f6 {[%clk 0:01:55.9]} 26. Rhe3 {[%clk 0:00:56.5]} 26... Rb2
{[%clk 0:01:47.2]} 27. R3e2 {[%clk 0:00:49.5]} 27... Rfb8 {[%clk 0:01:46.1]} 28.
h4 {[%clk 0:00:49.9]} 28... Rxe2 {[%clk 0:01:45.4]} 29. Bxe2 {[%clk 0:00:42.3]}
29... Rb2 {[%clk 0:01:44.8]} 30. h5 {[%clk 0:00:38]} 30... Qg7 {[%clk
0:01:43.6]} 31. Qc1 {[%clk 0:00:30.2]} 31... gxh5 {[%clk 0:01:42.4]} 32. g3
{[%clk 0:00:21.8]} 32... Rxa2 {[%clk 0:00:57.4]} 33. Bxh5 {[%clk 0:00:22.8]}
33... Qg5 {[%clk 0:00:50.2]} 34. Qb1 {[%clk 0:00:16.7]} 34... Qxh5 {[%clk
0:00:50.1]} 0-1

[Event "*** MasterClass Titled Tuesday Blitz"]
[Site "Chess.com"]
[Date "2017.11.07"]
[Round "3"]
[White "cheese111"]
[Black "hansen"]
[Result "1-0"]
[WhiteElo "2404"]
[BlackElo "2560"]
[TimeControl "180+2"]
[EndTime "14:43:07 PST"]
[Termination "cheese111 won on time"]

1. e4 {[%clk 0:03:01.9]} 1... c5 {[%clk 0:02:59.3]} 2. Nf3 {[%clk 0:03:02.5]}
2... e6 {[%clk 0:02:59.7]} 3. g3 {[%clk 0:03:02.5]} 3... Nc6 {[%clk 0:02:59.7]}
4. Bg2 {[%clk 0:03:03.7]} 4... Nf6 {[%clk 0:02:59.9]} 5. Qe2 {[%clk 0:03:04.8]}
5... e5 {[%clk 0:03:01.1]} 6. O-O {[%clk 0:03:05.9]} 6... Be7 {[%clk 0:03:02.8]}
7. c3 {[%clk 0:03:04.5]} 7... d6 {[%clk 0:03:04.3]} 8. Rd1 {[%clk 0:02:54.7]}
8... Bg4 {[%clk 0:03:05]} 9. h3 {[%clk 0:02:54.5]} 9... Bh5 {[%clk 0:03:05.9]}
10. d3 {[%clk 0:02:51.4]} 10... O-O {[%clk 0:03:05.4]} 11. Nbd2 {[%clk
0:02:52.5]} 11... b5 {[%clk 0:02:40.4]} 12. Nf1 {[%clk 0:02:50.8]} 12... b4
{[%clk 0:02:36]} 13. g4 {[%clk 0:02:50.5]} 13... Bg6 {[%clk 0:02:36.7]} 14. Ng3
{[%clk 0:02:51.8]} 14... bxc3 {[%clk 0:02:34.4]} 15. bxc3 {[%clk 0:02:52.5]}
15... Qa5 {[%clk 0:02:20.6]} 16. Qc2 {[%clk 0:02:41.1]} 16... Rfb8 {[%clk
0:02:08.7]} 17. Be3 {[%clk 0:02:36.6]} 17... Ne8 {[%clk 0:02:03.6]} 18. h4
{[%clk 0:02:02.8]} 18... h6 {[%clk 0:01:59]} 19. h5 {[%clk 0:01:58.8]} 19... Bh7
{[%clk 0:01:59.8]} 20. g5 {[%clk 0:01:55.7]} 20... hxg5 {[%clk 0:01:56.6]} 21.
Nxg5 {[%clk 0:01:56.2]} 21... Bxg5 {[%clk 0:01:54.8]} 22. Bxg5 {[%clk
0:01:58.1]} 22... Nc7 {[%clk 0:01:55.8]} 23. h6 {[%clk 0:01:52.7]} 23... Ne6
{[%clk 0:01:56.3]} 24. Be3 {[%clk 0:01:48.6]} 24... gxh6 {[%clk 0:01:47.9]} 25.
Nf5 {[%clk 0:01:36.3]} 25... Qc7 {[%clk 0:01:25]} 26. Nxh6+ {[%clk 0:01:24.1]}
26... Kh8 {[%clk 0:01:25.2]} 27. Qe2 {[%clk 0:00:47.1]} 27... Qe7 {[%clk
0:01:24.2]} 28. Qh5 {[%clk 0:00:45.9]} 28... Bg6 {[%clk 0:01:24.2]} 29. Qh3
{[%clk 0:00:39.5]} 29... Qd7 {[%clk 0:00:31]} 30. Ng4+ {[%clk 0:00:31.3]} 1-0

[Event "*** MasterClass Titled Tuesday Blitz"]
[Site "Chess.com"]
[Date "2017.11.07"]
[Round "3"]
[White "Dr-Bassem"]
[Black "oskariot"]
[Result "1-0"]
[WhiteElo "2577"]
[BlackElo "2487"]
[TimeControl "180+2"]
[EndTime "14:43:22 PST"]
[Termination "Dr-Bassem won on time"]

1. e4 {[%clk 0:03:01.8]} 1... c5 {[%clk 0:03:00.8]} 2. Nf3 {[%clk 0:03:02.7]}
2... d6 {[%clk 0:03:02.3]} 3. g3 {[%clk 0:03:02.6]} 3... Nf6 {[%clk 0:02:59.9]}
4. d3 {[%clk 0:03:03.1]} 4... g6 {[%clk 0:02:58.6]} 5. Bg2 {[%clk 0:03:04.4]}
5... Bg7 {[%clk 0:03:00.5]} 6. O-O {[%clk 0:03:05.7]} 6... O-O {[%clk
0:03:02.4]} 7. c3 {[%clk 0:03:05.8]} 7... Nc6 {[%clk 0:03:03.8]} 8. Re1 {[%clk
0:03:06.5]} 8... Rb8 {[%clk 0:03:04]} 9. h3 {[%clk 0:03:07.4]} 9... e5 {[%clk
0:03:02.2]} 10. a3 {[%clk 0:03:05.4]} 10... h6 {[%clk 0:03:01.7]} 11. b4 {[%clk
0:03:05.5]} 11... b6 {[%clk 0:03:03]} 12. Nbd2 {[%clk 0:03:03]} 12... Kh7 {[%clk
0:03:03.8]} 13. Bb2 {[%clk 0:03:03.8]} 13... Be6 {[%clk 0:03:04.8]} 14. d4
{[%clk 0:03:02]} 14... exd4 {[%clk 0:02:20.2]} 15. cxd4 {[%clk 0:03:03.8]} 15...
Nxd4 {[%clk 0:02:21]} 16. Nxd4 {[%clk 0:03:04.5]} 16... cxd4 {[%clk 0:02:22]}
17. Bxd4 {[%clk 0:03:06.4]} 17... Qd7 {[%clk 0:02:23.2]} 18. Qf3 {[%clk
0:03:04.5]} 18... Qe7 {[%clk 0:01:36]} 19. Nf1 {[%clk 0:02:53.6]} 19... Nd7
{[%clk 0:01:15.6]} 20. Bxg7 {[%clk 0:02:53.1]} 20... Kxg7 {[%clk 0:01:17.3]} 21.
Qc3+ {[%clk 0:02:50.8]} 21... Qf6 {[%clk 0:01:18]} 22. Qd2 {[%clk 0:02:44.1]}
22... Ne5 {[%clk 0:01:00.2]} 23. f4 {[%clk 0:02:39.8]} 23... Nc4 {[%clk
0:01:00.2]} 24. Qd3 {[%clk 0:02:38.2]} 24... Rbc8 {[%clk 0:00:58.8]} 25. Rac1
{[%clk 0:02:32.2]} 25... b5 {[%clk 0:00:58.4]} 26. Ne3 {[%clk 0:02:19.4]} 26...
Nxe3 {[%clk 0:00:57.3]} 27. Qxe3 {[%clk 0:02:21.3]} 27... Qb2 {[%clk 0:00:47.6]}
28. Red1 {[%clk 0:02:02.8]} 28... Bb3 {[%clk 0:00:39.4]} 29. Rxc8 {[%clk
0:02:01.9]} 29... Rxc8 {[%clk 0:00:35.4]} 30. Qd4+ {[%clk 0:02:01.4]} 30...
Qxd4+ {[%clk 0:00:36.1]} 31. Rxd4 {[%clk 0:02:03.1]} 31... Rc3 {[%clk
0:00:29.6]} 32. g4 {[%clk 0:01:52.8]} 32... Bc4 {[%clk 0:00:28.8]} 33. Rxd6
{[%clk 0:01:49.2]} 33... Rxa3 {[%clk 0:00:30]} 34. e5 {[%clk 0:01:45.8]} 34...
a5 {[%clk 0:00:28.1]} 35. bxa5 {[%clk 0:01:43.6]} 35... b4 {[%clk 0:00:23.5]}
36. f5 {[%clk 0:01:33.9]} 36... gxf5 {[%clk 0:00:22.4]} 37. gxf5 {[%clk
0:01:35.8]} 37... b3 {[%clk 0:00:22.7]} 38. Be4 {[%clk 0:01:36.6]} 38... h5
{[%clk 0:00:14]} 39. h4 {[%clk 0:01:28.7]} 39... b2 {[%clk 0:00:15]} 40. f6+
{[%clk 0:01:29.3]} 40... Kh6 {[%clk 0:00:15.7]} 41. Rd8 {[%clk 0:01:30.2]} 41...
Ra1+ {[%clk 0:00:04.5]} 42. Kh2 {[%clk 0:01:28.3]} 1-0